fUSD/lending_fUSD_20240519
["ID","MTS","AMOUNT","RATE_DAILY","PERIOD"]
[327444814,1716077479504,-519.812481,0.00028493,7]
[327444815,1716077479513,-500.0,0.00028493,2]
[327444816,1716077479522,-500.0,0.00028493,2]
[327444817,1716077479531,-151.0,0.00028493,7]
[327444818,1716077479541,-519.812481,0.00028493,7]
[327444819,1716077479550,-1124.01,0.00028493,2]
[327444820,1716077479560,-2424.02,0.00028493,2]
[327444821,1716077479569,-500.0,0.00028493,2]
[327444822,1716077479578,-500.0,0.00028493,2]
[327444823,1716077479588,-1936.72,0.00028493,2]
[327444824,1716077479597,-1249.4,0.00028493,2]
[327444825,1716077479607,-151.0,0.00028493,7]
[327444826,1716077479616,-500.0,0.00028493,2]
[327444827,1716077479625,-2316.41,0.00028493,2]
[327444828,1716077479635,-500.0,0.00028493,2]
[327444829,1716077479644,-1024.15,0.00028493,2]
[327444830,1716077479653,-895.6,0.00028493,2]
[327444831,1716077479663,-500.0,0.00028493,2]
[327444832,1716077479672,-500.0,0.00028493,2]
[327444833,1716077479685,-500.0,0.00028493,2]
[327444834,1716077479694,-500.0,0.00028493,2]
[327444835,1716077479704,-709.56,0.00028493,2]
[327444836,1716077479714,-570.19,0.00028493,2]
[327444837,1716077479723,-1154.19,0.00028493,2]
[327444838,1716077479732,-1378.01,0.00028493,2]
[327444839,1716077479742,-1873.84,0.00028493,2]
[327444840,1716077479751,-503.15,0.00028493,2]
[327444841,1716077479763,-575.32,0.00028493,2]
[327444842,1716077479772,-151.0,0.00028493,7]
[327444843,1716077479782,-500.0,0.00028493,2]
[327444844,1716077479791,-2689.46,0.00028493,2]
[327444845,1716077479800,-842.94,0.00028493,2]
[327444846,1716077479810,-956.07,0.00028493,2]
[327444847,1716077479819,-500.0,0.00028493,2]
[327444848,1716077479829,-500.0,0.00028493,2]
[327444849,1716077479839,-500.0,0.00028493,2]
[327444850,1716077479849,-1409.03,0.00028493,2]
[327444851,1716077479860,-1542.92,0.00028493,2]
[327444852,1716077479870,-633.54,0.00028493,2]
[327444853,1716077479878,-151.0,0.00028493,7]
[327444854,1716077479888,-4096.02,0.00028493,2]
[327444855,1716077479897,-624.22278294,0.00028493,2]
[327444856,1716077479906,-2212.12,0.00028493,2]
[327444857,1716077479916,-500.0,0.00028493,2]
[327444858,1716077479925,-500.0,0.00028493,2]
[327444859,1716077479935,-695.04,0.00028493,2]
[327444860,1716077479945,-1365.15,0.00028493,2]
[327444861,1716077479954,-500.0,0.00028493,2]
[327444862,1716077479964,-500.0,0.00028493,2]
[327444863,1716077479974,-500.0,0.00028493,2]
[327444864,1716077479983,-1557.76,0.00028493,2]
[327444865,1716077479992,-500.0,0.00028493,2]
[327444866,1716077480001,-500.0,0.00028493,2]
[327444867,1716077480010,-2000.0,0.00028501,2]
[327444868,1716077480020,-200.0,0.00028501,2]
[327444869,1716077480030,-741.0,0.00028562,5]
[327444870,1716077480039,-247.3,0.00028599,7]
[327444871,1716077480049,-157.051907,0.00028748,14]
[327444872,1716077480058,-500.0,0.00028766,2]
[327444873,1716077480068,-500.0,0.00028766,2]
[327444874,1716077480077,-500.0,0.00028767,2]
[327444875,1716077480086,-500.0,0.00028767,2]
[327444876,1716077480095,-500.0,0.00028767,2]
[327444877,1716077480105,-500.0,0.00028767,2]
[327444878,1716077480114,-500.0,0.00028767,2]
[327444879,1716077480124,-500.0,0.00028767,2]
[327444880,1716077480133,-500.0,0.00028767,2]
[327444881,1716077480143,-500.0,0.00028767,2]
[327444882,1716077480152,-500.0,0.00028767,2]
[327444883,1716077480161,-561.71,0.00028767,2]
[327444884,1716077480171,-674.49,0.00028767,2]
[327444885,1716077480180,-702.65,0.00028767,2]
[327444886,1716077480190,-500.0,0.00028767,2]
[327444887,1716077480200,-689.69,0.00028767,2]
[327444888,1716077480209,-500.0,0.00028767,2]
[327444889,1716077480219,-580.84,0.00028767,2]
[327444890,1716077480228,-540.51089863,0.00028767,2]
[327444891,1716077480239,-500.0,0.00028767,2]
[327444892,1716077480248,-500.0,0.00028767,2]
[327444893,1716077480258,-612.31,0.00028767,2]
[327444894,1716077480268,-961.14,0.00028767,2]
[327444895,1716077480276,-540.22,0.00028767,2]
[327444896,1716077480286,-1047.34,0.00028767,2]
[327444897,1716077480295,-500.0,0.00028767,2]
[327444898,1716077480304,-500.0,0.00028767,2]
[327444899,1716077480314,-500.0,0.00028767,2]
[327444900,1716077480324,-867.44,0.00028767,2]
[327444901,1716077480334,-500.0,0.00028767,2]
[327444902,1716077480344,-500.0,0.00028767,2]
[327444903,1716077480355,-505.05,0.00028767,2]
[327444904,1716077480364,-500.0,0.00028767,2]
[327444905,1716077480372,-500.0,0.00028767,2]
[327444906,1716077480381,-500.0,0.00028767,2]
[327444907,1716077480391,-575.74,0.00028767,2]
[327444908,1716077480400,-500.0,0.00028767,2]
[327444909,1716077480409,-1013.47,0.00028767,2]
[327444910,1716077480418,-500.0,0.00028767,2]
[327444911,1716077480428,-500.0,0.00028767,2]
[327444912,1716077480437,-500.0,0.00028767,2]
[327444913,1716077480446,-500.0,0.00028767,2]
[327444914,1716077480456,-500.0,0.00028767,2]
[327444915,1716077480465,-501.04,0.00028767,2]
[327444916,1716077480474,-500.0,0.00028767,2]
[327444917,1716077480483,-570.91,0.00028767,2]
[327444918,1716077480492,-500.0,0.00028767,2]
[327444919,1716077480502,-500.0,0.00028767,2]
[327444920,1716077480511,-500.0,0.00028767,2]
[327444921,1716077480520,-781.67,0.00028767,2]
[327444922,1716077480531,-500.0,0.00028767,2]
[327444923,1716077480542,-500.0,0.00028767,2]
[327444924,1716077480551,-500.0,0.00028767,2]
[327444925,1716077480561,-500.0,0.00028767,2]
[327444926,1716077480570,-500.0,0.00028767,2]
[327444927,1716077480580,-859.88,0.00028767,2]
[327444928,1716077480589,-627.23,0.00028767,2]
[327444929,1716077480598,-644.06,0.00028767,2]
[327444930,1716077480609,-500.0,0.00028767,2]
[327444931,1716077480618,-500.0,0.00028767,2]
[327444932,1716077480627,-500.0,0.00028767,2]
[327444933,1716077480636,-238.40788213,0.00028767,2]
[327444934,1716077480645,-500.0,0.00028767,2]
[327444935,1716077480656,-500.0,0.00028767,2]
[327444936,1716077480665,-151.0,0.00028767,7]
[327444937,1716077480676,-500.0,0.00028767,2]
[327444938,1716077480689,-840.81,0.00028767,2]
[327444939,1716077480698,-500.0,0.00028767,2]
[327444940,1716077480708,-500.0,0.00028767,2]
[327444941,1716077480718,-151.0,0.00028767,7]
[327444942,1716077480728,-670.91,0.00028767,2]
[327444943,1716077480737,-572.52,0.00028767,2]
[327444944,1716077480747,-500.0,0.00028767,2]
[327444945,1716077480757,-500.0,0.00028767,2]
[327444946,1716077480767,-500.0,0.00028767,2]
[327444947,1716077480777,-500.0,0.00028767,2]
[327444948,1716077480786,-1271.07,0.00028767,2]
[327444949,1716077480796,-598.75,0.00028767,2]
[327444950,1716077480805,-784.75,0.00028767,2]
[327444951,1716077480815,-524.04,0.00028767,2]
[327444952,1716077480824,-500.0,0.00028767,2]
[327444953,1716077480833,-975.28,0.00028767,2]
[327444954,1716077480843,-202.88,0.00028767,2]
[327444955,1716077480852,-500.0,0.00028767,2]
[327444956,1716077480863,-555.23,0.00028767,2]
[327444957,1716077480873,-354.733553,0.00028767,7]
[327444958,1716077480883,-1270.09,0.00028767,2]
[327444959,1716077480893,-500.0,0.00028767,2]
[327444960,1716077480902,-500.0,0.00028767,2]
[327444961,1716077480912,-545.43,0.00028767,2]
[327444962,1716077480921,-567.78,0.00028767,2]
[327444963,1716077480931,-500.0,0.00028767,2]
[327444964,1716077480940,-354.733553,0.00028767,7]
[327444965,1716077480950,-1095.64,0.00028767,2]
[327444966,1716077480960,-500.0,0.00028767,2]
[327444967,1716077480970,-500.0,0.00028767,2]
[327444968,1716077480979,-585.96,0.00028767,2]
[327444969,1716077480989,-1080.36,0.00028767,2]
[327444970,1716077480998,-500.0,0.00028767,2]
[327444971,1716077481007,-878.43,0.00028767,2]
[327444972,1716077481017,-674.73,0.00028767,2]
[327444973,1716077481026,-524.41,0.00028767,2]
[327444974,1716077481036,-756.34,0.00028767,2]
[327444975,1716077481045,-830.44,0.00028767,2]
[327444976,1716077481055,-598.7,0.00028767,2]
[327444977,1716077481065,-500.0,0.00028767,2]
[327444978,1716077481074,-500.0,0.00028767,2]
[327444979,1716077481084,-769.97,0.00028767,2]
[327444980,1716077481093,-521.56,0.00028767,2]
[327444981,1716077481102,-654.52,0.00028767,2]
[327444982,1716077481111,-500.0,0.00028767,2]
[327444983,1716077481120,-718.86,0.00028767,2]
[327444984,1716077481129,-500.0,0.00028767,2]
[327444985,1716077481140,-762.02,0.00028767,2]
[327444986,1716077481149,-773.69,0.00028767,2]
[327444987,1716077481159,-500.0,0.00028767,2]
[327444988,1716077481169,-500.0,0.00028767,2]
[327444989,1716077481178,-879.32,0.00028767,2]
[327444990,1716077481188,-807.43,0.00028767,2]
[327444991,1716077481197,-500.0,0.00028767,2]
[327444992,1716077481206,-500.0,0.00028767,2]
[327444993,1716077481216,-500.0,0.00028767,2]
[327444994,1716077481225,-960.42,0.00028767,2]
[327444995,1716077481235,-500.0,0.00028767,2]
[327444996,1716077481244,-799.74,0.00028767,2]
[327444997,1716077481253,-500.0,0.00028767,2]
[327444998,1716077481263,-1421.89,0.00028767,2]
[327444999,1716077481272,-694.7,0.00028767,2]
[327445000,1716077481282,-500.0,0.00028767,2]
[327445001,1716077481292,-574.3,0.00028767,2]
[327445002,1716077481303,-748.48,0.00028767,2]
[327445003,1716077481315,-500.0,0.00028767,2]
[327445004,1716077481327,-500.0,0.00028767,2]
[327445005,1716077481337,-500.0,0.00028767,2]
[327445006,1716077481347,-780.69,0.00028767,2]
[327445007,1716077481357,-960.46,0.00028767,2]
[327445008,1716077481367,-500.0,0.00028767,2]
[327445009,1716077481376,-500.0,0.00028767,2]
[327445010,1716077481385,-500.0,0.00028767,2]
[327445011,1716077481394,-564.47,0.00028767,2]
[327445012,1716077481404,-500.0,0.00028767,2]
[327445013,1716077481413,-500.0,0.00028767,2]
[327445014,1716077481422,-500.0,0.00028767,2]
[327445015,1716077481431,-500.0,0.00028767,2]
[327445016,1716077481441,-500.0,0.00028767,2]
[327445017,1716077481450,-1055.26,0.00028767,2]
[327445018,1716077481459,-1647.33,0.00028767,2]
[327445019,1716077481468,-461.07527656,0.00028767,2]
[327445020,1716077481477,-500.0,0.00028767,2]
[327445021,1716077481486,-151.0,0.00028767,7]
[327445022,1716077481495,-675.58,0.00028767,2]
[327445023,1716077481504,-500.0,0.00028767,2]
[327445024,1716077481514,-500.0,0.00028767,2]
[327445025,1716077481523,-500.0,0.00028767,2]
[327445026,1716077481533,-892.52,0.00028767,2]
[327445027,1716077481542,-500.0,0.00028767,2]
[327445028,1716077481551,-500.0,0.00028767,2]
[327445029,1716077481560,-696.4,0.00028767,2]
[327445030,1716077481570,-659.15,0.00028767,2]
[327445031,1716077481579,-975.45,0.00028767,2]
[327445032,1716077481589,-500.0,0.00028767,2]
[327445033,1716077481598,-500.0,0.00028767,2]
[327445034,1716077481609,-500.0,0.00028767,2]
[327445035,1716077481618,-500.0,0.00028767,2]
[327445036,1716077481627,-500.0,0.00028767,2]
[327445037,1716077481637,-500.0,0.00028767,2]
[327445038,1716077481647,-500.0,0.00028767,2]
[327445039,1716077481656,-500.0,0.00028767,2]
[327445040,1716077481666,-151.0,0.00028767,7]
[327445041,1716077481676,-500.0,0.00028767,2]
[327445042,1716077481690,-500.0,0.00028767,2]
[327445043,1716077481700,-151.0,0.00028767,7]
[327445044,1716077481709,-500.0,0.00028767,2]
[327445045,1716077481718,-500.0,0.00028767,2]
[327445046,1716077481730,-667.44,0.00028767,2]
[327445047,1716077481893,-500.0,0.00028767,2]
[327445048,1716077481915,-151.0,0.00028767,7]
[327445049,1716077481926,-500.0,0.00028767,2]
[327445050,1716077481935,-619.54,0.00028767,2]
[327445051,1716077481945,-500.0,0.00028767,2]
[327445052,1716077481956,-151.0,0.00028767,7]
[327445053,1716077481966,-849.47,0.00028767,2]
[327445054,1716077481975,-690.93,0.00028767,2]
[327445055,1716077481984,-500.0,0.00028767,2]
[327445056,1716077481994,-500.0,0.00028767,2]
[327445057,1716077482002,-902.26,0.00028767,2]
[327445058,1716077482011,-325.69896188,0.00028767,2]
[327445059,1716077482021,-500.0,0.00028767,2]
[327445060,1716077482032,-500.0,0.00028767,2]
[327445061,1716077482042,-500.0,0.00028767,2]
[327445062,1716077482054,-500.0,0.00028767,2]
[327445063,1716077482063,-855.55,0.00028767,2]
[327445064,1716077482072,-151.0,0.00028767,7]
[327445065,1716077482082,-500.0,0.00028767,2]
[327445066,1716077482091,-500.0,0.00028767,2]
[327445067,1716077482101,-500.0,0.00028767,2]
[327445068,1716077482111,-1577.42,0.00028767,2]
[327445069,1716077482120,-1068.89,0.00028767,2]
[327445070,1716077482129,-500.0,0.00028767,2]
[327445071,1716077482140,-820.23,0.00028767,2]
[327445072,1716077482149,-508.23,0.00028767,2]
[327445073,1716077482159,-609.88,0.00028767,2]
[327445074,1716077482169,-500.0,0.00028767,2]
[327445075,1716077482179,-500.0,0.00028767,2]
[327445076,1716077482188,-765.81,0.00028767,2]
[327445077,1716077482197,-500.0,0.00028767,2]
[327445078,1716077482207,-500.0,0.00028767,2]
[327445079,1716077482216,-500.0,0.00028767,2]
[327445080,1716077482226,-500.0,0.00028767,2]
[327445081,1716077482235,-500.0,0.00028767,2]
[327445082,1716077482245,-151.0,0.00028767,7]
[327445083,1716077482254,-500.0,0.00028767,2]
[327445084,1716077482264,-500.0,0.00028767,2]
[327445085,1716077482273,-500.0,0.00028767,2]
[327445086,1716077482282,-774.08,0.00028767,2]
[327445087,1716077482292,-750.89,0.00028767,2]
[327445088,1716077482301,-151.0,0.00028767,7]
[327445089,1716077482311,-500.0,0.00028767,2]
[327445090,1716077482320,-500.0,0.00028767,2]
[327445091,1716077482329,-500.0,0.00028767,2]
[327445092,1716077482338,-1264.74,0.00028767,2]
[327445093,1716077482347,-500.0,0.00028767,2]
[327445094,1716077482357,-500.0,0.00028767,2]
[327445095,1716077482366,-732.31,0.00028767,2]
[327445096,1716077482376,-500.0,0.00028767,2]
[327445097,1716077482385,-500.0,0.00028767,2]
[327445098,1716077482394,-151.0,0.00028767,7]
[327445099,1716077482403,-961.36,0.00028767,2]
[327445100,1716077482412,-500.0,0.00028767,2]
[327445101,1716077482421,-1397.82,0.00028767,2]
[327445102,1716077482430,-620.55,0.00028767,2]
[327445103,1716077482439,-500.0,0.00028767,2]
[327445104,1716077482449,-500.0,0.00028767,2]
[327445105,1716077482458,-500.0,0.00028767,2]
[327445106,1716077482468,-500.0,0.00028767,2]
[327445107,1716077482477,-788.47,0.00028767,2]
[327445108,1716077482486,-702.58,0.00028767,2]
[327445109,1716077482495,-406.69,0.00028767,2]
[327445110,1716077482504,-717.76,0.00028767,2]
[327445111,1716077482513,-1107.18,0.00028767,2]
[327445112,1716077482522,-500.0,0.00028767,2]
[327445113,1716077482531,-500.0,0.00028767,2]
[327445114,1716077482541,-1418.57,0.00028767,2]
[327445115,1716077482550,-500.0,0.00028767,2]
[327445116,1716077482559,-500.0,0.00028767,2]
[327445117,1716077482569,-548.41,0.00028767,2]
[327445118,1716077482578,-500.0,0.00028767,2]
[327445119,1716077482587,-731.89,0.00028767,2]
[327445120,1716077482597,-654.67,0.00028767,2]
[327445121,1716077482609,-500.0,0.00028767,2]
[327445122,1716077482618,-500.0,0.00028767,2]
[327445123,1716077482626,-575.3,0.00028767,2]
[327445124,1716077482636,-174.24506016,0.00028767,2]
[327445125,1716077482645,-500.0,0.00028767,2]
[327445126,1716077482654,-500.0,0.00028767,2]
[327445127,1716077482663,-753.87,0.00028767,2]
[327445128,1716077482673,-558.06,0.00028767,2]
[327445129,1716077482687,-500.0,0.00028767,2]
[327445130,1716077482697,-500.0,0.00028767,2]
[327445131,1716077482706,-592.45,0.00028767,2]
[327445132,1716077482715,-1470.72,0.00028767,2]
[327445133,1716077482727,-210.48,0.00028767,2]
[327445134,1716077482736,-735.2,0.00028767,2]
[327445135,1716077482746,-897.8,0.00028767,2]
[327445136,1716077482756,-500.0,0.00028767,2]
[327445137,1716077482768,-500.0,0.00028767,2]
[327445138,1716077482778,-500.0,0.00028767,2]
[327445139,1716077482787,-1194.38,0.00028767,2]
[327445140,1716077482798,-894.37,0.00028767,2]
[327445141,1716077482808,-567.91,0.00028767,2]
[327445142,1716077482819,-1413.9,0.00028767,2]
[327445143,1716077482829,-838.92,0.00028767,2]
[327445144,1716077482839,-500.0,0.00028767,2]
[327445145,1716077482849,-579.0,0.00028767,2]
[327445146,1716077482859,-500.0,0.00028767,2]
[327445147,1716077482868,-1047.05,0.00028767,2]
[327445148,1716077482877,-1288.52,0.00028767,2]
[327445149,1716077482886,-512.22,0.00028767,2]
[327445150,1716077482896,-737.25,0.00028767,2]
[327445151,1716077482905,-973.22,0.00028767,2]
[327445152,1716077482915,-1081.43,0.00028767,2]
[327445153,1716077482924,-500.0,0.00028767,2]
[327445154,1716077482934,-539.38,0.00028767,2]
[327445155,1716077482943,-500.0,0.00028767,2]
[327445156,1716077482952,-500.0,0.00028767,2]
[327445157,1716077482962,-500.0,0.00028767,2]
[327445158,1716077482972,-771.25,0.00028767,2]
[327445159,1716077482981,-620.78,0.00028767,2]
[327445160,1716077482990,-500.0,0.00028767,2]
[327445161,1716077483000,-500.0,0.00028767,2]
[327445162,1716077483009,-500.0,0.00028767,2]
[327445163,1716077483019,-500.0,0.00028767,2]
[327445164,1716077483028,-500.0,0.00028767,2]
[327445165,1716077483038,-501.17,0.00028767,2]
[327445166,1716077483047,-500.0,0.00028767,2]
[327445167,1716077483056,-571.64850902,0.00028767,2]
[327445168,1716077483066,-500.0,0.00028767,2]
[327445169,1716077483075,-500.0,0.00028767,2]
[327445170,1716077483084,-500.0,0.00028767,2]
[327445171,1716077483093,-500.0,0.00028767,2]
[327445172,1716077483102,-500.0,0.00028767,2]
[327445173,1716077483112,-500.0,0.00028767,2]
[327445174,1716077483121,-862.09,0.00028767,2]
[327445175,1716077483131,-500.0,0.00028767,2]
[327445176,1716077483140,-500.0,0.00028767,2]
[327445177,1716077483150,-500.0,0.00028767,2]
[327445178,1716077483159,-500.0,0.00028767,2]
[327445179,1716077483169,-596.95,0.00028767,2]
[327445180,1716077483178,-881.6,0.00028767,2]
[327445181,1716077483187,-500.0,0.00028767,2]
[327445182,1716077483197,-500.0,0.00028767,2]
[327445183,1716077483206,-500.0,0.00028767,2]
[327445184,1716077483215,-720.84,0.00028767,2]
[327445185,1716077483224,-2975.3,0.00028767,2]
[327445186,1716077483234,-500.0,0.00028767,2]
[327445187,1716077483243,-662.13,0.00028767,2]
[327445188,1716077483252,-151.0,0.00028767,7]
[327445189,1716077483262,-500.0,0.00028767,2]
[327445190,1716077483271,-500.0,0.00028767,2]
[327445191,1716077483280,-500.0,0.00028767,2]
[327445192,1716077483289,-1121.07,0.00028767,2]
[327445193,1716077483299,-500.0,0.00028767,2]
[327445194,1716077483308,-500.0,0.00028767,2]
[327445195,1716077483317,-875.83,0.00028767,2]
[327445196,1716077483326,-500.0,0.00028767,2]
[327445197,1716077483335,-500.0,0.00028767,2]
[327445198,1716077483344,-500.0,0.00028767,2]
[327445199,1716077483354,-1130.37,0.00028767,2]
[327445200,1716077483363,-695.7,0.00028767,2]
[327445201,1716077483372,-1392.95,0.00028767,2]
[327445202,1716077483382,-500.0,0.00028767,2]
[327445203,1716077483391,-500.0,0.00028767,2]
[327445204,1716077483400,-698.81,0.00028767,2]
[327445205,1716077483410,-500.0,0.00028767,2]
[327445206,1716077483419,-791.91,0.00028767,2]
[327445207,1716077483429,-500.0,0.00028767,2]
[327445208,1716077483438,-1456.87,0.00028767,2]
[327445209,1716077483448,-151.0,0.00028767,7]
[327445210,1716077483457,-1314.57,0.00028767,2]
[327445211,1716077483467,-2275.44,0.00028767,2]
[327445212,1716077483476,-574.86,0.00028767,2]
[327445213,1716077483485,-500.0,0.00028767,2]
[327445214,1716077483494,-511.71,0.00028767,2]
[327445215,1716077483503,-500.0,0.00028767,2]
[327445216,1716077483513,-2814.42,0.00028767,2]
[327445217,1716077483522,-500.0,0.00028767,2]
[327445218,1716077483532,-501.32,0.00028767,2]
[327445219,1716077483541,-500.0,0.00028767,2]
[327445220,1716077483551,-1303.92,0.00028767,2]
[327445221,1716077483560,-810.63,0.00028767,2]
[327445222,1716077483570,-500.0,0.00028767,2]
[327445223,1716077483579,-4678.13,0.00028767,2]
[327445224,1716077483588,-500.0,0.00028767,2]
[327445225,1716077483597,-2780.12,0.00028767,2]
[327445226,1716077483606,-516.01,0.00028767,2]
[327445227,1716077483617,-887.4,0.00028767,2]
[327445228,1716077483626,-500.0,0.00028767,2]
[327445229,1716077483635,-514.0,0.00028767,2]
[327445230,1716077483644,-725.59,0.00028767,2]
[327445231,1716077483654,-500.0,0.00028767,2]
[327445232,1716077483663,-1154.5,0.00028767,2]
[327445233,1716077483672,-500.0,0.00028767,2]
[327445234,1716077483687,-1503.52,0.00028767,2]
[327445235,1716077483696,-500.0,0.00028767,2]
[327445236,1716077483706,-1444.2,0.00028767,2]
[327445237,1716077483715,-500.0,0.00028767,2]
[327445238,1716077483725,-1032.28,0.00028767,2]
[327445239,1716077483734,-500.0,0.00028767,2]
[327445240,1716077483744,-500.0,0.00028767,2]
[327445241,1716077483754,-500.0,0.00028767,2]
[327445242,1716077483763,-1522.9,0.00028767,2]
[327445243,1716077483772,-561.95,0.00028767,2]
[327445244,1716077483782,-7233.9,0.00028767,2]
[327445245,1716077483791,-776.17,0.00028767,2]
[327445246,1716077483800,-500.0,0.00028767,2]
[327445247,1716077483810,-605.79,0.00028767,2]
[327445248,1716077483819,-1300.37,0.00028767,2]
[327445249,1716077483828,-1051.93,0.00028767,2]
[327445250,1716077483838,-500.0,0.00028767,2]
[327445251,1716077483848,-6024.88,0.00028767,2]
[327445252,1716077483857,-500.0,0.00028767,2]
[327445253,1716077483868,-271.707118,0.00028767,7]
[327445254,1716077483877,-5592.85,0.00028767,2]
[327445255,1716077483886,-151.0,0.00028767,7]
[327445256,1716077483895,-500.0,0.00028767,2]
[327445257,1716077483904,-1220.15,0.00028767,2]
[327445258,1716077483913,-11547.64,0.00028767,2]
[327445259,1716077483923,-500.0,0.00028767,2]
[327445260,1716077483932,-500.0,0.00028767,2]
[327445261,1716077483942,-151.0,0.00028767,7]
[327445262,1716077483951,-964.95,0.00028767,2]
[327445263,1716077483960,-500.0,0.00028767,2]
[327445264,1716077483971,-500.0,0.00028767,2]
[327445265,1716077483980,-730.61,0.00028767,2]
[327445266,1716077483990,-684.37,0.00028767,2]
[327445267,1716077483999,-2185.64,0.00028767,2]
[327445268,1716077484009,-523.440221,0.00028767,7]
[327445269,1716077484018,-1150.67,0.00028767,2]
[327445270,1716077484027,-500.0,0.00028767,2]
[327445271,1716077484036,-500.0,0.00028767,2]
[327445272,1716077484045,-922.42,0.00028767,2]
[327445273,1716077484054,-523.440221,0.00028767,7]
[327445274,1716077484064,-714.21,0.00028767,2]
[327445275,1716077484073,-667.74,0.00028767,2]
[327445276,1716077484082,-500.0,0.00028767,2]
[327445277,1716077484091,-624.56,0.00028767,2]
[327445278,1716077484100,-500.0,0.00028767,2]
[327445279,1716077484109,-253.455997,0.00028767,7]
[327445280,1716077484119,-500.0,0.00028767,2]
[327445281,1716077484128,-785.83,0.00028767,2]
[327445282,1716077484138,-500.0,0.00028767,2]
[327445283,1716077484147,-500.0,0.00028767,2]
[327445284,1716077484156,-1993.35,0.00028767,2]
[327445285,1716077484165,-253.455997,0.00028767,7]
[327445286,1716077484174,-500.0,0.00028767,2]
[327445287,1716077484184,-500.0,0.00028767,2]
[327445288,1716077484193,-500.0,0.00028767,2]
[327445289,1716077484202,-593.18,0.00028767,2]
[327445290,1716077484212,-555.98,0.00028767,2]
[327445291,1716077484221,-500.0,0.00028767,2]
[327445292,1716077484231,-708.12,0.00028767,2]
[327445293,1716077484241,-1034.98,0.00028767,2]
[327445294,1716077484305,-500.0,0.00028767,2]
[327445295,1716077484314,-819.64,0.00028767,2]
[327445296,1716077484323,-1062.72,0.00028767,2]
[327445297,1716077484332,-500.0,0.00028767,2]
[327445298,1716077484342,-614.07,0.00028767,2]
[327445299,1716077484350,-500.0,0.00028767,2]
[327445300,1716077484359,-609.38,0.00028767,2]
[327445301,1716077484369,-500.0,0.00028767,2]
[327445302,1716077484378,-186.431819,0.00028767,7]
[327445303,1716077484387,-6648.46,0.00028767,2]
[327445304,1716077484397,-1688.51,0.00028767,2]
[327445305,1716077484406,-564.19,0.00028767,2]
[327445306,1716077484415,-151.0,0.00028767,7]
[327445307,1716077484425,-1089.3,0.00028767,2]
[327445308,1716077484434,-186.431819,0.00028767,7]
[327445309,1716077484443,-151.0,0.00028767,7]
[327445310,1716077484452,-846.78,0.00028767,2]
[327445311,1716077484462,-1349.04,0.00028767,2]
[327445312,1716077484471,-1553.34,0.00028767,2]
[327445313,1716077484480,-830.23,0.00028767,2]